bitfinex/quotes_ETHUSD_20250222
["timestamp","ask_amount","ask_price","bid_price","bid_amount"]
[1740245952982,0.7556,2795.9,2795.4,0.10347595]
[1740245953415,0.7556,2795.9,2795.6,3.57697]
[1740245953579,0.7556,2795.9,2795.4,7.25793595]
[1740245953917,0.7556,2795.9,2795.5,3.57717]
[1740245954317,0.7556,2795.9,2795.6,0.10279688]
[1740245955114,5.79,2796.2,2795.6,0.10279688]
[1740245955317,0.7556,2796.6,2796.1,3.57638]
[1740245955482,0.7556,2796.6,2796.3,3.57614]
[1740245955812,0.7556,2796.6,2796.4,0.10201384]
[1740245956277,0.7556,2796.6,2796.1,3.57628]
[1740245956609,4.33137,2796.6,2795.9,3.57656]
[1740245956816,4.33137,2796.6,2796.2,0.10220955]
[1740245957110,5.646078,2796.6,2796.0,3.57644]
[1740245957419,0.55,2796.3,2795.8,0.70756322]
[1740245957717,3.5765,2796.1,2795.8,0.70756322]
[1740245958019,3.5766,2796.0,2795.8,0.70756322]
[1740245958498,3.57666,2795.9,2795.8,0.70756322]
[1740245959100,4.367546,2795.9,2795.8,0.70756322]
[1740245959304,4.917546,2795.9,2795.8,0.70756322]
[1740245959610,3.57711,2795.6,2795.0,4.33635]
[1740245959814,3.57718,2795.5,2795.0,0.7586]
[1740245960640,3.57718,2795.5,2795.0,0.87056742]
[1740245961002,3.57711,2795.6,2795.0,4.93881295]
[1740245961337,3.57695,2795.7,2795.2,3.57755]
[1740245961729,3.57695,2795.7,2795.3,0.10242643]
[1740245961918,3.57695,2795.7,2795.2,3.57755]
[1740245962119,3.57695,2795.7,2795.3,0.10242643]
[1740245962319,3.57686,2795.8,2795.3,3.57742]
[1740245962531,3.57699,2795.7,2795.4,0.1023285]
[1740245962839,3.57699,2795.7,2795.2,3.57755]
[1740245963041,3.57704,2795.6,2795.5,0.10223058]
[1740245963220,3.57704,2795.6,2795.1,3.57761]
[1740245963759,3.57692,2795.7,2795.2,3.57752]
[1740245963912,3.57716,2795.6,2795.2,0.10252436]
[1740245964254,3.57716,2795.6,2795.1,3.57762]
[1740245964411,3.57716,2795.6,2795.3,0.10242643]
[1740245964606,3.19787,2795.6,2795.2,0.10252436]
[1740245964850,6.775,2795.6,2795.2,0.10252436]
[1740245965051,3.57688,2795.8,2795.2,3.68007436]
[1740245965357,3.57688,2795.8,2795.2,0.9317538]
[1740245965506,3.57688,2795.8,2795.3,3.57734]
[1740245965706,3.57702,2795.7,2795.4,0.10250292]
[1740245965950,3.57704,2795.6,2795.1,3.5776]
[1740245966252,3.57704,2795.6,2795.2,0.10269207]
[1740245967729,3.57716,2795.6,2795.2,0.10269207]
[1740245967938,0.55,2795.9,2795.2,0.10269207]
[1740245968142,0.55,2795.4,2795.0,0.7586]
[1740245968338,0.55,2795.3,2795.1,0.10279001]
[1740245968656,0.7925,2795.4,2794.6,7.308]
[1740245968657,0.55,2795.0,2794.6,10.88632]
[1740245968853,4.12781,2795.0,2794.9,0.11197293]
[1740245969350,5.69086,2795.0,2794.9,0.11197293]
[1740245969549,4.92031,2795.0,2794.9,0.11197293]
[1740245969753,4.12781,2795.0,2794.6,7.308]
[1740245971698,0.7925,2795.3,2794.8,3.57796]
[1740245971821,3.57706,2795.6,2795.0,4.38912]
[1740245972153,3.57706,2795.6,2795.0,4.3891]
[1740245972355,3.57706,2795.6,2795.1,0.43891]
[1740245972720,0.55,2795.5,2795.1,0.43891]
[1740245972922,0.55,2795.5,2795.2,3.57747]
[1740245973117,0.55,2795.6,2795.3,3.57743]
[1740245973533,0.8284,2796.0,2795.3,3.57736]
[1740245973729,0.55,2795.7,2795.3,3.978987]
[1740245974456,4.12692,2795.7,2795.3,0.401627]
[1740245974659,1.3784,2796.1,2794.8,0.17915938]
[1740245974871,3.57778,2795.1,2794.8,0.17915938]
[1740245975071,3.57788,2795.0,2794.8,0.17915938]
[1740245975357,0.55,2795.1,2794.8,0.17915938]
[1740245975531,0.55,2795.2,2794.8,0.92787532]
[1740245975947,0.55,2795.2,2794.9,3.57793]
[1740245976146,7.98261,2795.6,2795.0,3.68129906]
[1740245976325,4.40548,2795.6,2795.1,3.5776]
[1740245976526,4.40548,2795.6,2795.1,4.38464391]
[1740245976725,0.55,2795.5,2795.2,0.10350396]
[1740245977034,0.55,2795.6,2795.2,3.68099396]
[1740245977625,0.55,2795.6,2795.2,0.10350396]
[1740245977825,4.12708,2795.6,2795.2,0.10350396]
[1740245978762,3.57728,2795.5,2795.2,0.10350396]
[1740245978938,3.57731,2795.4,2795.2,0.10350396]
[1740245979136,3.57731,2795.4,2794.9,4.38926]
[1740245979343,3.57731,2795.4,2794.9,5.26086959]
[1740245979531,3.57731,2795.4,2795.0,0.10364616]
[1740245980760,7.1547,2795.4,2795.0,0.10364616]
[1740245980935,3.57749,2795.3,2795.0,0.10364616]
[1740245981335,3.57026389,2795.3,2795.0,0.10364616]
[1740245981730,3.57731,2795.4,2795.0,0.10364616]
[1740245981731,3.57731,2795.4,2795.0,0.63385033]
[1740245983009,4.40508,2795.9,2795.0,0.63385033]
[1740245983010,0.55,2795.8,2795.0,0.63385033]
[1740245983138,4.12687,2795.8,2795.3,3.57736]
[1740245983443,4.12687,2795.8,2795.4,0.10328126]
[1740245984037,4.12687,2795.8,2795.2,3.57747]
[1740245984244,3.57692,2795.7,2795.5,0.10308266]
[1740245984443,3.57719,2795.5,2795.1,0.8114]
[1740245984657,3.5773,2795.4,2795.1,0.45682705]
[1740245984843,3.5773,2795.4,2794.9,3.75707053]
[1740245985038,3.57719,2795.5,2794.9,0.17915053]
[1740245985266,3.577,2795.7,2795.1,3.5776]
[1740245985462,3.57724,2795.5,2795.0,3.5778]
[1740245985666,3.57724,2795.5,2795.0,3.68977509]
[1740245985967,3.57724,2795.5,2795.1,0.36897751]
[1740245986871,3.57733,2795.4,2795.1,0.36897751]
[1740245987072,3.57718,2795.5,2795.1,0.11197509]
[1740245987277,4.12706,2795.6,2795.1,3.68962509]
[1740245987878,4.12706,2795.6,2795.2,0.33230073]
[1740245988755,3.57727,2795.5,2795.2,0.33230073]
[1740245989064,7.15454,2795.5,2795.2,0.33230073]
[1740245989263,3.57743,2795.3,2795.2,0.33230073]
[1740245989465,3.57768,2795.1,2795.0,0.17915499]
[1740245990078,3.57757,2795.2,2794.8,4.32676594]
[1740245990281,0.8127,2795.3,2794.9,0.45059209]
[1740245990282,0.55,2795.3,2794.9,0.45059209]
[1740245990446,0.55,2795.3,2795.0,3.57779]
[1740245991171,0.55,2795.3,2795.1,0.10342069]
[1740245991544,0.55,2795.3,2794.9,4.3608745]
[1740245991765,0.55,2795.3,2795.0,0.10351863]
[1740245993142,4.38657,2795.2,2795.1,0.11197467]
[1740245993371,4.93657,2795.2,2795.1,0.21186154]
[1740245993679,4.93657,2795.2,2795.1,0.54424397]
[1740245994785,4.12757,2795.2,2795.1,0.54424397]
[1740245995081,0.55,2795.1,2794.7,0.7997]
[1740245995283,0.55,2795.1,2794.7,1.26409606]
[1740245995491,4.38626,2795.5,2794.9,3.57787]
[1740245995649,4.38626,2795.5,2795.0,3.57781]
[1740245995850,3.57731,2795.4,2795.0,0.09998482]
[1740245996349,0.809,2795.5,2794.7,0.7997]
[1740245996650,3.57787,2795.0,2794.8,0.10018073]
[1740245996851,3.57794,2794.9,2794.8,0.10018073]
[1740245997051,3.57794,2794.9,2794.4,4.6522]
[1740245997250,3.57794,2794.9,2794.8,0.10018073]
[1740245997451,3.57794,2794.9,2794.5,0.53591129]
[1740245997686,3.57794,2794.9,2794.8,0.10018073]
[1740245997863,3.57807,2794.8,2794.3,0.70691286]
[1740245998057,3.57807,2794.8,2794.5,0.11199661]
[1740245998248,3.57816,2794.8,2794.5,0.11199661]
[1740245999151,3.57816,2794.8,2794.4,0.2659572]
[1740245999389,3.5782,2794.7,2794.4,0.2659572]
[1740245999881,3.5782,2794.7,2794.3,0.97287006]
[1740246000084,3.5782,2794.7,2794.3,1.84914141]
[1740246000272,3.57821,2794.7,2794.3,1.84914141]
[1740246000480,3.57858,2794.4,2794.3,0.97287006]
[1740246000972,4.12858,2794.4,2794.3,0.2659572]
[1740246001173,4.93758,2794.4,2794.3,0.2659572]
[1740246001386,7.93758,2794.4,2794.3,0.2659572]
[1740246001588,9.089193,2794.4,2794.3,0.2659572]
[1740246001817,9.089193,2794.4,2793.7,0.11202508]
[1740246002021,4.12907,2794.1,2793.7,0.11202508]
[1740246002466,0.55,2794.1,2793.7,3.69142508]
[1740246002969,4.12898,2794.1,2793.7,0.11202508]
[1740246003470,3.57912,2794.0,2793.6,0.7997]
[1740246003691,3.57912,2794.0,2793.4,7.31336805]
[1740246003692,3.57911,2794.0,2793.4,7.31336805]
[1740246004008,4.12928,2793.9,2793.4,9.17059654]
[1740246004297,0.55,2794.1,2793.4,9.17059654]
[1740246004497,3.57943,2793.8,2793.4,9.17059654]
[1740246005195,3.57943,2793.8,2793.4,7.31336805]
[1740246005573,4.12917,2794.0,2793.4,7.31336805]
[1740246005767,0.55,2793.8,2793.4,10.89319805]
[1740246005967,0.55,2793.8,2793.4,7.31336805]
[1740246006167,0.55,2793.8,2793.5,0.10227229]
[1740246006598,3.57935,2793.8,2793.5,0.10227229]
[1740246006966,4.12923,2793.9,2793.5,0.10227229]
[1740246007167,3.57942,2793.8,2793.5,0.10227229]
[1740246010417,0.55,2793.6,2793.5,0.10227229]
[1740246010703,4.12961,2793.6,2793.5,0.10227229]
[1740246011474,4.982389,2793.6,2793.5,0.10227229]
[1740246011897,7.982389,2793.6,2793.5,0.10227229]
[1740246012066,4.92513,2793.5,2793.4,0.00436805]
[1740246012907,7.92513,2793.5,2793.4,0.00436805]
[1740246020609,8.1904001,2793.5,2793.4,0.00436805]
[1740246020795,9.98906657,2793.5,2793.4,0.00436805]
[1740246022786,0.7954,2793.2,2792.2,0.1513753]
[1740246022992,7.92667,2792.3,2792.2,0.1513753]
[1740246024789,7.92667,2792.3,2792.2,5.3e-06]
[1740246025005,8.779449,2792.3,2792.2,5.3e-06]
[1740246025901,3.55,2792.3,2792.2,5.3e-06]
[1740246026217,3.0,2792.3,2792.2,5.3e-06]
[1740246026414,5.24,2792.6,2792.2,5.3e-06]
[1740246026626,0.55,2792.4,2792.2,5.3e-06]
[1740246026803,0.55,2792.3,2792.2,5.3e-06]
[1740246027314,4.13127,2792.3,2792.2,5.3e-06]
[1740246028821,4.13127,2792.3,2792.2,0.10269399]
[1740246028986,4.13127,2792.3,2792.2,5.3e-06]
[1740246029187,4.902512,2792.3,2792.2,5.3e-06]
[1740246030193,0.55,2792.3,2792.2,5.3e-06]
[1740246030396,4.13127,2792.3,2792.2,0.10269399]
[1740246030715,4.89577,2792.3,2792.2,0.10269399]
[1740246031079,4.89577,2792.3,2792.2,5.3e-06]
[1740246031388,7.89577,2792.3,2792.2,5.3e-06]
[1740246031607,9.043462,2792.3,2792.2,5.3e-06]
[1740246032285,7.13127,2792.3,2792.2,5.3e-06]
[1740246032717,7.13127,2792.3,2792.2,0.14286912]
[1740246032920,7.13127,2792.3,2792.2,5.3e-06]
[1740246033219,3.55,2792.3,2792.2,5.3e-06]
[1740246033622,7.13127,2792.3,2792.2,0.14286912]
[1740246034023,0.55,2792.3,2792.2,0.14286912]
[1740246034319,3.58033,2793.1,2792.4,4.34765]
[1740246034522,3.58053,2792.9,2792.4,4.34765]
[1740246034815,3.58076,2792.7,2792.5,0.14290003]
[1740246035220,3.58089,2792.6,2792.5,0.14290003]
[1740246035386,3.58076,2792.7,2792.5,0.14290003]
[1740246035387,7.16162,2792.7,2792.5,0.14290003]
[1740246035587,3.58089,2792.6,2792.5,0.14290003]
[1740246036118,4.13089,2792.6,2792.5,0.14290003]
[1740246036418,5.027589,2792.6,2792.2,5.3e-06]
[1740246036620,4.13127,2792.3,2792.2,5.3e-06]
[1740246038322,7.13127,2792.3,2792.2,5.3e-06]
[1740246041702,7.89577,2792.3,2792.2,5.3e-06]
[1740246044401,13.13577,2792.3,2792.2,5.3e-06]
[1740246044597,17.9389603,2792.3,2792.2,5.3e-06]
[1740246046402,14.63964347,2792.3,2792.2,5.3e-06]
[1740246046807,17.9389603,2792.3,2792.2,5.3e-06]
[1740246054933,8.82127,2792.3,2792.2,5.3e-06]
[1740246055140,5.24,2792.3,2792.2,5.3e-06]
[1740246055648,12.37127,2792.3,2792.2,0.13890812]
[1740246055813,11.82127,2792.3,2792.2,5.3e-06]
[1740246056215,12.37127,2792.3,2792.2,5.3e-06]
[1740246056414,14.37244368,2792.3,2792.2,5.3e-06]
[1740246058648,15.13244368,2792.3,2792.2,5.3e-06]
[1740246058943,14.37244368,2792.3,2792.2,5.3e-06]
[1740246060569,18.43176051,2792.3,2792.2,5.3e-06]
[1740246061449,15.13244368,2792.3,2792.2,5.3e-06]
[1740246063074,14.37244368,2792.3,2792.2,5.3e-06]
[1740246063272,11.82127,2792.3,2792.2,5.3e-06]
[1740246063450,6.58127,2792.3,2792.2,5.3e-06]
[1740246063649,5.24,2792.5,2792.2,0.13905516]
[1740246063852,7.13127,2792.3,2792.2,0.13905516]
[1740246064059,7.13127,2792.3,2792.2,5.3e-06]
[1740246064349,8.802511,2792.3,2792.2,5.3e-06]
[1740246068170,14.042511,2792.3,2792.2,5.3e-06]
[1740246071981,15.078211,2792.3,2792.2,5.3e-06]
[1740246076551,18.848211,2792.3,2792.2,5.3e-06]
[1740246076773,18.848211,2792.3,2791.1,0.8256]
[1740246076774,3.58268,2791.2,2791.1,0.8256]
[1740246076992,9.37268,2791.2,2791.1,0.8256]
[1740246077167,9.37268,2791.2,2791.1,0.96607303]
[1740246079154,5.24,2791.2,2791.1,0.96607303]
[1740246079803,5.79,2791.2,2791.1,0.96607303]
[1740246080109,5.24,2791.2,2791.1,5.00377733]
[1740246080901,5.24,2791.2,2791.1,5.11593326]
[1740246081390,5.24,2791.2,2791.1,5.44934251]
[1740246081594,5.24,2791.2,2791.1,5.71620865]
[1740246082798,5.24,2791.2,2791.1,2.13339865]
[1740246083104,0.55,2791.9,2791.2,0.8256]
[1740246083404,3.58219,2791.6,2791.3,0.14046767]
[1740246083700,3.58139,2792.3,2791.4,0.8256]
[1740246083905,3.58139,2792.3,2791.8,0.8256]
[1740246084206,3.0,2792.4,2791.8,3.58181]
[1740246084378,3.58109,2792.5,2792.0,3.58165]
[1740246084585,3.58109,2792.5,2791.9,4.54718005]
[1740246084785,3.0,2792.4,2792.2,0.8256]
[1740246085176,3.55,2792.4,2792.3,0.13947177]
[1740246085372,8.82081,2792.7,2792.3,0.13947177]
[1740246085903,3.55,2792.6,2792.3,0.13947177]
[1740246086092,3.0,2792.6,2792.3,0.13947177]
[1740246086495,6.58101,2792.6,2792.3,0.13947177]
[1740246086701,3.0,2792.6,2792.3,0.13947177]
[1740246087003,7.13114,2792.4,2792.3,0.13947177]
[1740246087506,0.55,2792.2,2791.9,0.7534]
[1740246087705,0.55,2792.2,2792.0,0.13977047]
[1740246087910,3.581,2792.6,2792.1,0.7534]
[1740246088146,3.55,2792.5,2792.2,0.13957133]
[1740246088279,0.55,2792.5,2792.2,0.13957133]
[1740246088475,5.24,2792.7,2792.2,0.13957133]
[1740246088678,3.58115,2792.4,2792.1,0.7534]
[1740246088879,3.58108,2792.5,2792.2,0.13957133]
[1740246089078,3.58115,2792.4,2792.2,0.13957133]
[1740246090214,3.58127,2792.3,2792.2,0.13957133]
[1740246090512,3.58115,2792.4,2792.2,0.13957133]
[1740246091281,0.55,2792.5,2792.2,0.13957133]
[1740246091507,3.58121,2792.4,2792.2,0.58701446]
[1740246091718,3.58121,2792.4,2792.2,0.13957133]
[1740246091953,0.55,2792.5,2792.2,0.13957133]
[1740246092723,3.58071,2792.8,2792.2,0.13957133]
[1740246092724,3.0,2792.7,2792.2,0.13957133]
[1740246092908,3.0,2792.7,2792.3,0.7588]
[1740246093124,0.55,2792.6,2792.3,0.7588]
[1740246093291,0.55,2792.6,2792.4,0.13887761]
[1740246093632,0.7566,2793.5,2792.4,0.13887761]
[1740246093804,3.57999,2793.3,2792.4,0.13887761]
[1740246094005,3.58058,2792.9,2792.5,0.7588]
[1740246094206,3.58058,2792.9,2792.5,0.89757807]
[1740246094407,0.55,2792.8,2792.5,0.89757807]
[1740246094611,7.16119,2792.9,2792.5,0.89757807]
[1740246094808,8.82008,2793.3,2792.7,3.58069]
[1740246095011,6.58012,2793.2,2792.8,0.7588]
[1740246095229,5.24,2793.3,2793.0,3.58037]
[1740246095547,3.57968,2793.6,2793.1,0.89698096]
[1740246095749,3.57974,2793.5,2793.1,0.89698096]
[1740246096099,3.57987,2793.4,2793.1,0.89698096]
[1740246096305,3.57968,2793.6,2793.1,0.89698096]
[1740246096527,3.57968,2793.6,2793.1,4.47721096]
[1740246096734,3.5793,2793.9,2793.3,3.57992]
[1740246096899,8.81918,2794.0,2793.4,0.1378825]
[1740246096900,3.0,2793.7,2793.4,0.1378825]
[1740246097101,6.57948,2793.7,2793.4,0.1378825]
[1740246097448,3.57973,2793.5,2793.4,0.1378825]
[1740246097747,5.145664,2793.5,2793.3,0.7588]
[1740246098050,3.57986,2793.4,2793.3,0.7588]
[1740246098414,3.57986,2793.4,2793.3,0.89678198]
[1740246100144,6.57954,2793.7,2793.3,0.89678198]
[1740246100324,10.1591,2793.7,2793.3,0.89678198]
[1740246100672,3.57967,2793.6,2793.3,0.89678198]
[1740246101416,3.57981,2793.5,2793.3,0.89678198]
[1740246102049,3.57986,2793.4,2793.3,0.89678198]
[1740246103552,3.0,2793.7,2793.3,1.61840077]
[1740246103759,6.57948,2793.7,2793.3,2.49625985]
[1740246103940,10.15907,2793.7,2793.3,2.49625985]
[1740246104119,6.57948,2793.7,2793.3,2.49625985]
[1740246104449,5.24,2794.0,2793.4,0.7588]
[1740246104838,3.57961,2793.6,2793.5,0.13560497]
[1740246105208,3.57949,2793.7,2793.5,0.13560497]
[1740246105404,3.57961,2793.6,2793.5,0.13560497]
[1740246106204,4.12961,2793.6,2793.5,0.13560497]
[1740246106510,4.95552,2793.6,2793.5,0.13560497]
[1740246106746,0.55,2793.5,2793.3,0.72161879]
[1740246106991,4.12986,2793.4,2793.3,0.72161879]
[1740246107491,6.57925,2793.9,2793.3,0.72161879]
[1740246107492,3.57958,2793.7,2793.3,0.72161879]
[1740246107699,3.57974,2793.5,2793.3,0.72161879]
[1740246108068,3.57964,2793.6,2793.3,0.72161879]
[1740246108999,3.57943,2793.8,2793.3,1.23053967]
[1740246109165,7.15889,2793.8,2793.4,0.7874]
[1740246109349,3.57943,2793.8,2793.4,0.7874]
[1740246109549,3.57955,2793.7,2793.4,0.7874]
[1740246109849,3.57948,2793.7,2793.4,0.7874]
[1740246110643,3.57951,2793.7,2793.4,0.7874]
[1740246111288,4.12937,2793.8,2793.5,0.13560497]
[1740246111495,3.57952,2793.7,2793.5,0.13560497]
[1740246111697,3.57961,2793.6,2793.5,0.13560497]
[1740246111893,3.57957,2793.7,2793.5,0.13560497]
[1740246112661,3.57961,2793.6,2793.5,0.13560497]
[1740246113791,3.57948,2793.7,2793.5,0.13560497]
[1740246115204,4.12942,2793.8,2793.5,0.13560497]
[1740246116053,6.57891,2794.2,2793.7,3.57943]
[1740246116252,6.57891,2794.2,2793.8,0.7678]
[1740246116448,3.57859,2794.4,2793.8,0.90297974]
[1740246116681,3.57859,2794.4,2793.9,3.57922]
[1740246117198,3.57859,2794.4,2794.0,3.71388061]
[1740246117353,3.57862,2794.4,2794.0,0.13480061]
[1740246117553,3.57862,2794.4,2793.8,7.92633]
[1740246117785,3.57862,2794.4,2793.9,0.92753305]
[1740246118149,3.57877,2794.3,2793.9,0.92753305]
[1740246118371,5.24,2794.6,2794.0,0.70019182]
[1740246118703,0.7765,2795.0,2794.3,0.7678]
[1740246118905,3.57855,2794.5,2794.3,0.7678]
[1740246119089,3.57855,2794.5,2794.4,0.13418267]
[1740246121124,8.620739,2794.5,2794.4,0.13418267]
[1740246121266,3.57896,2794.1,2794.0,0.70019182]
[1740246121621,3.57826,2794.7,2794.2,0.7678]
[1740246121976,3.57833,2794.6,2794.3,0.13409523]
[1740246122596,3.57833,2794.6,2794.2,0.7678]
[1740246122923,3.57833,2794.6,2794.3,0.56876523]
[1740246123132,3.57803,2794.9,2794.4,0.7678]
[1740246123331,3.57776,2795.1,2794.6,0.7678]
[1740246123535,0.7765,2795.6,2794.7,0.13369764]
[1740246123679,3.57803,2794.9,2794.7,0.13369764]
[1740246124212,3.57754,2795.3,2794.7,3.71183764]
[1740246124390,3.57757,2795.2,2794.8,0.44796376]
[1740246124780,3.57754,2795.3,2794.9,0.13349889]
[1740246124994,3.57771,2795.1,2794.9,0.13349889]
[1740246125297,4.90431,2795.0,2794.9,0.13349889]
[1740246125509,4.90431,2795.0,2794.4,0.7678]
[1740246125672,3.57845,2794.5,2794.4,0.7678]
[1740246125880,0.7765,2795.3,2794.4,0.90067479]
[1740246126086,3.57807,2794.8,2794.4,0.90067479]
[1740246126387,3.5782,2794.7,2794.4,0.90067479]
[1740246128221,7.15582,2795.0,2794.4,4.47919479]
[1740246128389,7.15582,2795.0,2794.5,0.80578848]
[1740246128588,3.5779,2795.0,2794.5,4.38423848]
[1740246128784,3.5779,2795.0,2794.6,0.13266266]
[1740246129626,6.87613683,2795.8,2794.6,0.13266266]
[1740246129627,3.57751,2795.3,2794.9,0.8011]
[1740246130039,3.57763,2795.2,2795.0,0.13226515]
[1740246130772,3.57751,2795.3,2795.0,0.13226515]
[1740246131426,7.70453,2795.5,2795.0,0.13226515]
[1740246131628,3.57698,2795.7,2795.2,0.8163]
[1740246132036,3.57705,2795.6,2795.3,0.13156697]
[1740246132320,3.0,2795.7,2795.2,4.39383]
[1740246132538,3.57683,2795.8,2795.3,0.94786697]
[1740246132707,3.57683,2795.8,2795.4,0.8102877]
[1740246132908,7.15371,2795.8,2795.5,0.1313683]
[1740246133139,3.57683,2795.8,2795.5,0.1313683]
[1740246133366,3.57698,2795.7,2795.5,0.1313683]
[1740246133737,3.57704,2795.6,2795.5,0.1313683]
[1740246134069,3.57704,2795.6,2795.5,0.3343639]
[1740246134250,3.57634,2796.2,2795.6,4.39325]
[1740246134760,3.5762,2796.3,2795.7,3.70799966]
[1740246134979,5.24,2796.5,2795.7,3.70799966]
[1740246134980,3.57596,2796.5,2795.8,0.8163]
[1740246135117,3.57596,2796.5,2795.9,3.70751105]
[1740246135319,6.0492,2797.0,2796.1,0.8163]
[1740246135320,7.15142,2796.7,2796.1,0.8163]
[1740246135551,3.57568,2796.7,2796.2,0.1304132]
[1740246135735,3.57567,2796.7,2796.5,0.8163]
[1740246136041,3.57567,2796.7,2796.6,0.13001615]
[1740246136443,0.8092,2797.4,2796.6,0.13001615]
[1740246136444,3.57532,2797.0,2796.6,0.13001615]
[1740246136642,3.57564,2796.7,2796.6,0.13001615]
[1740246137275,4.12564,2796.7,2796.6,0.13001615]
[1740246137434,3.5759,2796.5,2796.2,0.8163]
[1740246137641,3.57503,2797.2,2796.2,0.8163]
[1740246137834,3.57529,2797.0,2796.3,0.439269]
[1740246138039,3.57598,2796.5,2796.2,0.8163]
[1740246139027,3.57569,2796.7,2796.2,0.8163]
[1740246139337,3.57569,2796.7,2795.7,0.73159889]
[1740246139338,3.57666,2795.9,2795.8,0.8163]
[1740246141178,3.57666,2795.9,2795.8,0.9456106]
[1740246142879,3.57654,2796.0,2795.8,0.9456106]
[1740246143577,3.57666,2795.9,2795.8,0.9456106]
[1740246143931,3.57636,2796.2,2795.8,0.9456106]
[1740246144137,3.57626,2796.3,2795.9,0.8309]
[1740246144339,5.24,2796.9,2796.0,0.12917863]
[1740246144340,3.57651,2796.1,2796.0,0.12917863]
[1740246145476,3.57651,2796.1,2795.9,0.8309]
[1740246145666,3.57651,2796.1,2796.0,0.12917863]
[1740246149562,3.5756,2796.8,2796.2,3.57621]
[1740246149865,5.24,2797.5,2796.4,0.7977]
[1740246149866,3.57534,2797.0,2796.4,0.7977]
[1740246150066,3.5754,2796.9,2796.4,4.37372]
[1740246150254,3.5754,2796.9,2796.5,0.12864895]
[1740246150684,3.57566,2796.7,2796.5,0.12864895]
[1740246150912,3.57577,2796.6,2796.5,0.12864895]
[1740246151594,3.57628,2796.2,2796.1,6.2164]
[1740246151780,3.57628,2796.2,2795.9,7.578]
[1740246151781,4.12653,2796.0,2795.9,7.307]
[1740246153891,3.57653,2796.0,2795.9,7.43154807]
[1740246154214,0.7511,2796.3,2795.9,7.43154807]
[1740246154418,3.5764,2796.1,2796.0,0.74315481]
[1740246154785,3.5764,2796.1,2796.0,0.12470797]
[1740246155166,3.57622,2796.3,2796.0,0.12470797]
[1740246155388,3.57628,2796.2,2796.0,0.12470797]
[1740246156709,3.57598,2796.5,2796.0,0.12470797]
[1740246156873,3.57598,2796.5,2796.0,3.70122797]
[1740246157200,3.57598,2796.5,2796.1,0.8104288]
[1740246157405,3.57598,2796.5,2796.2,0.12441635]
[1740246157602,3.57568,2796.7,2796.2,0.12441635]
[1740246157803,3.57585,2796.6,2796.2,0.12441635]
[1740246158003,3.57568,2796.7,2796.2,0.12441635]
[1740246158173,3.57586,2796.6,2796.2,0.12441635]
[1740246158375,3.57568,2796.7,2796.2,0.57555286]
[1740246158708,4.3011,2796.9,2796.2,0.57555286]
[1740246158709,3.5759,2796.5,2796.2,0.57555286]
[1740246158898,3.5759,2796.5,2796.2,0.12441635]
[1740246159605,3.57604,2796.4,2796.2,0.12441635]
[1740246161217,3.57615,2796.3,2796.2,0.12441635]
[1740246161417,4.12615,2796.3,2796.2,0.12441635]
[1740246161587,3.57668,2795.9,2795.6,6.4874]
[1740246161910,3.57668,2795.9,2795.7,0.23681475]
[1740246163198,3.57679,2795.8,2795.7,0.23681475]
[1740246163431,3.57679,2795.8,2795.7,0.12487294]
[1740246164795,3.57679,2795.8,2795.3,0.8264]
[1740246165112,3.57695,2795.7,2795.4,0.12112763]
[1740246166105,0.7511,2795.9,2795.4,0.12112763]
[1740246166313,3.57715,2795.6,2795.2,0.111963]
[1740246166476,3.57715,2795.6,2795.5,0.12113439]
[1740246166673,3.57715,2795.6,2795.3,0.7418963]
[1740246166872,3.57715,2795.6,2795.5,0.12113439]
[1740246167109,3.57715,2795.6,2795.4,0.12123372]
[1740246167413,3.57715,2795.6,2795.5,0.12113439]
[1740246167810,3.57695,2795.7,2795.3,0.7418963]
[1740246167986,3.57689,2795.8,2795.4,1.37859887]
[1740246168174,3.57694,2795.7,2795.4,0.92013372]
[1740246168379,3.57692,2795.7,2795.4,0.92013372]
[1740246168583,3.57689,2795.8,2795.4,0.92013372]
[1740246169081,3.57699,2795.7,2795.4,0.92013372]
[1740246169810,0.55,2796.0,2795.4,0.92013372]
[1740246170015,3.57714,2795.6,2795.4,0.92013372]
[1740246170402,3.57714,2795.6,2795.4,0.12123372]
[1740246170607,3.57714,2795.6,2795.1,14.46228]
[1740246170814,3.57714,2795.6,2795.2,0.12147219]
[1740246171106,3.57688,2795.8,2795.3,3.57737]
[1740246171283,3.57688,2795.8,2795.3,5.06221845]
[1740246171483,3.57688,2795.8,2795.5,0.762]
[1740246171916,3.57688,2795.8,2795.6,0.12108149]
[1740246173018,3.57687,2795.8,2795.6,0.12108149]
[1740246174518,3.57692,2795.7,2795.6,0.12108149]
[1740246176331,4.12688,2795.8,2795.6,0.12108149]
[1740246176789,3.57692,2795.7,2795.6,0.12108149]
[1740246179430,4.897287,2795.7,2795.6,0.12108149]
[1740246179633,8.666987,2795.7,2795.6,0.12108149]
[1740246179842,3.55,2795.6,2794.8,1.03]
[1740246180121,8.666987,2795.7,2794.8,1.03]
[1740246180122,3.57757,2795.2,2794.8,1.03]
[1740246180315,3.57757,2795.2,2794.9,0.12194267]
[1740246180616,3.57757,2795.2,2794.9,1.32564894]
[1740246181624,3.57727,2795.5,2794.9,1.32564894]
[1740246181919,3.5773,2795.4,2794.9,1.32564894]
[1740246182119,3.57751,2795.3,2794.9,1.32564894]
[1740246182342,3.57758,2795.2,2794.9,1.32564894]
[1740246182843,3.57743,2795.3,2794.9,1.32564894]
[1740246183209,3.57764,2795.2,2794.9,1.32564894]
[1740246183410,4.12781,2795.0,2794.9,0.12194267]
[1740246183619,3.57794,2794.9,2794.8,0.11197797]
[1740246184842,3.57794,2794.9,2794.7,7.307]
[1740246185038,3.57807,2794.8,2794.7,7.307]
[1740246186248,3.57807,2794.8,2794.7,7.42914142]
[1740246188244,13.905171,2794.8,2794.7,0.12214142]
[1740246188455,17.20448783,2794.8,2794.7,0.12214142]
[1740246188610,17.20448783,2794.8,2793.6,0.72000658]